[Event "Czech Open-Rapid 2022"]
[Site "Pardubice"]
[Date "2022.07.20"]
[Round "3.37"]
[White "Baron, Patrik"]
[Black "Melichar, Vojtech"]
[Result "0-1"]
[ECO "C55"]
[WhiteElo "1800"]
[BlackElo "1907"]
[Annotator "TA"]
[PlyCount "28"]
[EventDate "2022.07.20"]
[EventType "swiss"]
[EventCountry "CZE"]
[SourceTitle "playchess.com"]
[Source "ChessBase"]
[SourceQuality "1"]
[TimeControl "1200+10"]

{[%evp 14,28,-8,-8,0,-18,0,-5,-15,-25,-25,-102,-53,-304,-316,-573,-568]} 1. e4 {[%emt 0:00:02]} e5 {[%emt 0:00:03][%cal Be7e5,Be5d4][%mdl 32]} 2. Nf3 {[%emt 0:00:05]} Nc6 {[%emt 0:00:02]} 3. Bc4 {[%emt 0:00:02]} Nf6 {[%emt 0:00:03]} 4. d4 {[%emt 0:00:01]} exd4 {[%emt 0:00:41]} 5. e5 {[%emt 0:00:02]} Ne4 {[%emt 0:00:03]} 6. Bd5 {[%emt 0:01:31]} Nc5 {[%emt 0:00:22]} 7. O-O {[%emt 0:02:03]} Be7 {[%emt 0:00:25]} 8. Re1 {[%emt 0:00:19]} O-O {[%emt 0:03:12] C56: Two Knights: 4 d4 exd4 5 0-0 Nxe4.} 9. Nxd4 {[%emt 0:00:05]} Nxd4 {[%emt 0:00:59]} 10. Qxd4 {[%emt 0:00:02]} c6 {[%emt 0:00:01] The position is equal.} 11. Bb3 {[%emt 0:00:57]} d5 {[%emt 0:00:13] [#]} 12. Bf4 $146 {[%emt 0:01:58]} (12. exd6 $11 Qxd6 13. Qxd6 Bxd6 14. Nd2) ({Predecessor:} 12. exd6 Qxd6 13. Be3 Bf5 14. Qxc5 Qxc5 15. Bxc5 Bxc5 16. Nd2 Rfe8 17. Nf3 Kf8 18. Kf1 Rad8 19. Rxe8+ Rxe8 20. h3 {½-½ (20) Gantar,J (2085)-Okorn,N (1837) Slovenija 2009}) 12... Ne4 {[%emt 0:03:39]} ({Black should try} 12... Bf5 $17 13. Nc3 a5) 13. Nd2 $2 {[%emt 0:00:33][%mdl 8192] [#]} (13. Be3 $15) 13... Bc5 $19 {[%emt 0:00:06]} 14. Qa4 {[%emt 0:00:41]} (14. Rxe4 Bxd4 15. Rxd4) 14... b5 {[%emt 0:00:13] White got outplayed after the opening.  Weighted Error Value: White=1.27/Black=0.10 (very precise)} 0-1

[Event "Czech Open-Rapid 2022"]
[Site "Pardubice"]
[Date "2022.07.20"]
[Round "3.38"]
[White "Henke, Georg"]
[Black "Kavalir, Jan"]
[Result "0-1"]
[ECO "A48"]
[WhiteElo "1566"]
[BlackElo "1987"]
[Annotator "TA"]
[PlyCount "32"]
[EventDate "2022.07.20"]
[EventType "swiss"]
[EventCountry "CZE"]
[SourceTitle "playchess.com"]
[Source "ChessBase"]
[SourceQuality "1"]
[TimeControl "1200+10"]

{[%evp 17,32,-20,-19,-28,10,-18,-26,-86,-29,-52,-70,-66,-60,-59,-12,-346,-354]} 1. d4 {[%emt 0:00:03]} Nf6 {[%emt 0:00:01]} 2. Nf3 {[%emt 0:00:01]} g6 {[%emt 0:00:01]} 3. e3 {[%emt 0:00:01]} Bg7 {[%emt 0:00:01]} 4. c4 {[%emt 0:00:01]} O-O {[%emt 0:00:03]} 5. Nc3 {[%emt 0:00:02]} d5 {[%emt 0:00:02]} 6. Be2 {[%emt 0:00:09]} dxc4 {[%emt 0:00:02]} 7. Bxc4 {[%emt 0:00:01]} c5 {[%emt 0:00:14]} 8. O-O {[%emt 0:00:08]} cxd4 {[%emt 0:00:40]} 9. Nxd4 {[%emt 0:02:13]} a6 {[%emt 0:00:12]} 10. Bb3 {[%emt 0:00:48] D94: Grünfeld: 4 Nf3 Bg7 5 e3.} b5 {[%emt 0:01:43][%cal Bb7b5,Bb5b4][%mdl 32]} 11. Qf3 {[%emt 0:00:40]} (11. Qe2 $5 {[%cal Rf1d1]}) 11... Ra7 {[%emt 0:00:01]} 12. h3 {[%emt 0:01:01] [#]} (12. Qg3 $11 {keeps the balance.} Qc7 13. Qh4) 12... Bb7 $146 {[%emt 0:00:06]} ({Better is} 12... Rd7 $1 $17) ({Predecessor:} 12... Rd7 13. Ne6 fxe6 14. Bxe6+ Kh8 15. Bxd7 Nbxd7 16. Rd1 b4 17. Nd5 Bb7 18. Qe2 Nxd5 {0-1 (39) Soedren,H-Johanson,L (2275) Stockholm 1994}) 13. Qg3 {[%emt 0:01:36]} b4 {[%emt 0:04:02]} 14. Na4 {[%emt 0:01:39]} Ne4 {[%emt 0:00:17][%csl LRd4,LRg3]} 15. Qh4 {[%emt 0:01:20]} Bf6 {[%emt 0:01:58]} (15... e5 $15 {is superior.} 16. Qxd8 Rxd8) 16. Qf4 $2 {[%emt 0:00:48][%mdl 8192] [#]} (16. Qg4 $1 $11 {and White is okay.}) 16... e5 {[%emt 0:00:18] Weighted Error Value: White=0.93/Black=0.19 (very precise)} 0-1

[Event "Czech Open-Rapid 2022"]
[Site "Pardubice"]
[Date "2022.07.20"]
[Round "3.39"]
[White "Kotva, Milan"]
[Black "Janko, Jan"]
[Result "1-0"]
[ECO "B09"]
[WhiteElo "1833"]
[BlackElo "1597"]
[Annotator "NA RC COMBH"]
[PlyCount "55"]
[EventDate "2022.07.20"]
[EventType "swiss"]
[EventCountry "CZE"]
[SourceTitle "playchess.com"]
[Source "ChessBase"]
[SourceQuality "1"]
[TimeControl "1200+10"]

1. e4 {[%emt 0:00:03]} d6 {[%emt 0:00:03]} 2. d4 {[%emt 0:00:04]} Nf6 {[%emt 0:00:02]} 3. Nc3 {[%emt 0:00:03]} g6 {[%emt 0:00:02]} 4. Bd3 {[%emt 0:00:07]} Bg7 {[%emt 0:00:01]} 5. f4 {[%emt 0:00:12]} O-O {[%emt 0:00:02]} 6. Nf3 {[%emt 0:00:03]} Nc6 {[%emt 0:00:24]} 7. O-O {[%emt 0:00:16]} Bg4 {[%emt 0:00:17]} 8. Ne2 {[%emt 0:00:18]} Nb4 {[%emt 0:01:00]} 9. c3 {[%emt 0:00:14]} Nxd3 {[%emt 0:00:11]} 10. Qxd3 {[%emt 0:00:02]} Bxf3 {[%emt 0:01:03]} 11. Rxf3 {[%emt 0:00:16]} c5 {[%emt 0:01:18]} 12. d5 {[%emt 0:00:46]} a6 {[%emt 0:01:36]} 13. Kh1 {[%emt 0:00:07]} b5 {[%emt 0:00:02]} 14. Be3 {[%emt 0:00:37]} a5 {[%emt 0:03:24]} 15. Rb1 {[%emt 0:01:06]} b4 {[%emt 0:01:16]} 16. c4 {[%emt 0:00:28]} a4 {[%emt 0:00:37]} 17. h3 {[%emt 0:01:27]} Nd7 {[%emt 0:00:32]} 18. Bf2 {[%emt 0:01:12]} h6 {[%emt 0:01:53]} 19. Bh4 {[%emt 0:01:12]} f6 {[%emt 0:02:10]} 20. e5 {[%emt 0:05:52]} g5 {[%emt 0:02:12]} 21. exf6 {[%emt 0:00:24]} exf6 {[%emt 0:01:03]} 22. Bg3 {[%emt 0:00:21]} Qe7 {[%emt 0:01:28]} 23. Re3 {[%emt 0:00:32]} Qf7 {[%emt 0:01:04]} 24. Re6 {[%emt 0:02:33]} f5 {[%emt 0:01:47]} 25. Qe3 {[%emt 0:02:39]} g4 {[%emt 0:00:32]} 26. Re7 {[%emt 0:00:33]} Qh5 {[%emt 0:00:31]} 27. Qe6+ Kh8 28. Qxd7 1-0

[Event "Czech Open-Rapid 2022"]
[Site "Pardubice"]
[Date "2022.07.20"]
[Round "3.40"]
[White "Babula, Matej"]
[Black "Pacl, Vaclav"]
[Result "0-1"]
[ECO "B01"]
[WhiteElo "1748"]
[BlackElo "2036"]
[Annotator "TA"]
[PlyCount "66"]
[EventDate "2022.07.20"]
[EventType "swiss"]
[EventCountry "CZE"]
[SourceTitle "playchess.com"]
[Source "ChessBase"]
[SourceQuality "1"]
[TimeControl "1200+10"]

{[%evp 9,66,-13,76,-135,-129,-135,-125,-137,-135,-138,-112,-137,-122,-113,-66,-58,-5,-7,145,111,144,0,-22,-255,-252,-249,64,-425,-423,-398,-418,-677,-667,-652,-294,-311,-296,-362,-352,-5010,-220,-460,-367,-712,-681,-1226,-1245,-1179,-1168,-1282,-1244,-6199,-6199,-29990,-29991,-29991,-29992,-29992,-770]} 1. e4 {[%emt 0:00:03]} d5 {[%emt 0:00:05]} 2. exd5 {[%emt 0:00:03]} Qxd5 {[%emt 0:00:02]} 3. d4 {[%emt 0:00:03]} Nc6 {[%emt 0:00:04]} 4. Nf3 {[%emt 0:00:15]} Bg4 {[%emt 0:00:01]} 5. c4 {[%emt 0:00:29]} Qe4+ {[%emt 0:00:53]} (5... Qa5+ $11 6. Bd2 Qf5) 6. Be2 $2 {[%emt 0:00:07] B01: Scandinavian Defence.} (6. Be3 $16 {is forced if you want to stay better.}) 6... Bxf3 $17 {[%emt 0:00:07]} 7. gxf3 {[%emt 0:00:09]} Qxd4 {[%emt 0:00:05] [#]} 8. Qb3 $146 {[%emt 0:00:47] Black is better.} ({Predecessor:} 8. Be3 Qxb2 9. Nd2 O-O-O 10. O-O Nd4 11. Bxd4 Rxd4 12. Qb3 Qxd2 13. Rfd1 Qg5+ 14. Kf1 Rxd1+ 15. Rxd1 e6 16. Qd3 Bd6 17. Qd4 Bxh2 18. Qd7+ Kb8 19. Qd8+ {1-0 (19) Torfs,G (735)-Digiglio,R (772) LSS email 2014}) 8... O-O-O {[%emt 0:00:57] aiming for ...Qh4.} 9. Be3 {[%emt 0:00:11]} Qe5 {[%emt 0:00:06]} 10. Nc3 {[%emt 0:00:50]} e6 {[%emt 0:00:16]} (10... Nd4 11. Qa4 $11 (11. Bxd4 Qxd4 12. Rd1 Qb6 $15)) 11. f4 {[%emt 0:01:05]} Qf5 {[%emt 0:01:48]} (11... Qa5 $1 $17 {White must now prevent ...Nd4.} 12. Bf3 Bc5) 12. Bf3 $1 $15 {[%emt 0:01:00]} Nge7 {[%emt 0:02:28]} (12... Qa5 $15) 13. Nb5 $11 {[%emt 0:04:41]} b6 $2 {[%emt 0:01:46]} (13... Rd3 $11 14. Nxa7+ Kb8 15. Nxc6+ Nxc6) 14. Qa4 $1 $16 {[%emt 0:03:07]} a5 {[%emt 0:00:02] [#]} 15. c5 $2 {[%emt 0:02:03]} ({Only move:} 15. Rd1 $1 $16) 15... Nd5 $11 {[%emt 0:01:17] Pair of Knights!} (15... bxc5 16. Nc3 Nd4 17. Be4 $14) 16. Nd6+ $2 {[%emt 0:01:10]} Bxd6 $19 {[%emt 0:01:01]} 17. Qxc6 {[%emt 0:00:12]} Nxe3 $2 {[%emt 0:01:10] Active counter play!} (17... Bxf4 $19 18. Rf1 (18. Bxd5 $2 Rxd5 19. cxb6 Qe4 $19) 18... Bxh2 19. Bxd5 Qxd5 20. Qxd5 Rxd5 21. cxb6 cxb6 22. Bxb6 h5) 18. cxd6 $2 {[%emt 0:01:28][%mdl 8192]} ({Stronger than} 18. fxe3 Qxc5 19. Ke2 Qxc6 20. Bxc6 h6 $17) (18. Qb7+ $14 {is the one way to stay ahead.} Kd7 19. Bc6+ (19. cxd6 Nc2+ 20. Kf1 Qd3+ 21. Kg2 Qg6+ 22. Kh3 Qh6+ 23. Kg3 Qg6+ 24. Kh3 Qh6+ 25. Kg3 Qg6+ 26. Kh3 $11) 19... Ke7 20. cxd6+ Kf6 21. fxe3) 18... Nc2+ {[%emt 0:00:49]} 19. Kf1 {[%emt 0:00:08][%csl Gd6][%cal Rc6c7]} Rxd6 {[%emt 0:00:07] The board is on fire.} 20. Qa8+ {[%emt 0:00:23]} (20. Qb7+ $142 Kd7 21. Rc1) 20... Kd7 {[%emt 0:00:03]} 21. Qxh8 {[%emt 0:00:04]} Nxa1 {[%emt 0:00:12]} (21... Qh3+ $142 22. Bg2 Qg4) 22. Qxg7 {[%emt 0:01:19]} Qxf4 {[%emt 0:01:01]} 23. Kg2 {[%emt 0:00:47]} Nc2 {[%emt 0:00:28]} ({Avoid the trap} 23... Rd3 $2 24. Qg3 Qxg3+ 25. Kxg3 $19) 24. Qxh7 $2 {[%emt 0:00:42] [#]} (24. Rd1) 24... Nd4 $2 $40 {[%emt 0:01:09][%mdl 128] Black goes for the king.} (24... Ne3+ $1 {[%mdl 512]} 25. fxe3 Rd2+ 26. Kh3 Qxf3+ 27. Kh4 Rxb2 28. Qd3+ Ke8) 25. Bh5 $2 {[%emt 0:02:03]} (25. Qh5) 25... Qg5+ {[%emt 0:02:18]} 26. Kf1 $2 {[%emt 0:00:06]} (26. Kh3 Rd5 27. Qxf7+ Kc8 28. Rd1) 26... Qb5+ {[%emt 0:00:36]} 27. Kg1 {[%emt 0:00:23]} Ne2+ {[%emt 0:03:24]} 28. Bxe2 {[%emt 0:00:17]} Qxe2 {[%emt 0:00:01]} 29. Qxf7+ {[%emt 0:00:02] KQR-KQR} Kc6 {[%emt 0:00:01]} 30. Qe8+ {[%emt 0:00:54]} Kb7 {[%emt 0:00:06] ( -> ...Qg4+)} 31. h3 {[%emt 0:00:07] Inhibits Qg4+.} Rd1+ {[%emt 0:00:11] Black mates.} 32. Kg2 {[%emt 0:00:04]} Qe4+ {[%emt 0:00:01]} 33. f3 {[%emt 0:00:18]} Qe2+ {[%emt 0:00:01] Weighted Error Value: White=1.58/Black=0.72} (33... Rd2+ $142 34. Kg3 Qe5+ 35. f4 Qe3+ 36. Kh4 Qxf4+ 37. Kh5 Rd5+ 38. Kg6 Rg5+ 39. Kh7 Qh4+ 40. Qh5 Qxh5#) 0-1

[Event "Czech Open-Rapid 2022"]
[Site "Pardubice"]
[Date "2022.07.20"]
[Round "3.41"]
[White "Kovalskyi, Roman"]
[Black "Modrova, Hana"]
[Result "1-0"]
[ECO "B07"]
[WhiteElo "2056"]
[BlackElo "1803"]
[Annotator "TA"]
[PlyCount "57"]
[EventDate "2022.07.20"]
[EventType "swiss"]
[EventCountry "CZE"]
[SourceTitle "playchess.com"]
[Source "ChessBase"]
[SourceQuality "1"]
[TimeControl "1200+10"]

{[%evp 9,57,52,101,22,51,-2,65,-6,132,138,206,197,209,187,169,36,47,52,35,-114,-120,-113,-70,-105,-105,-110,-110,-111,-110,-93,119,138,139,133,122,120,116,122,250,256,291,296,491,491,482,476,470,462,1235,1231]} 1. e4 {[%emt 0:00:02]} d6 {[%emt 0:00:08]} 2. d4 {[%emt 0:00:02]} Nf6 {[%emt 0:00:02]} 3. Nc3 {[%emt 0:00:01]} c6 {[%emt 0:00:01]} 4. a4 {[%emt 0:00:02]} Bg4 {[%emt 0:00:23]} 5. Nge2 {[%emt 0:00:06] [#]} e6 $146 {[%emt 0:00:14]} (5... e5 $14) ({Predecessor:} 5... e5 6. h3 Bxe2 7. Bxe2 Nbd7 8. O-O Be7 9. Be3 O-O 10. Qd2 h6 11. Kh1 Nxe4 12. Nxe4 f5 13. dxe5 dxe5 14. Rad1 Nb6 15. Qxd8 Rfxd8 16. Bc5 {1-0 (16) Kalvaitis,S (2310)-Kasparavicius,L (2113) Palanga 2011}) 6. h3 {[%emt 0:00:01] B07: Pirc Defence: Miscellaneous Systems.} (6. f3 $16 Bh5 7. Nf4) 6... Bh5 {[%emt 0:00:00]} 7. Be3 {[%emt 0:00:09]} (7. g4 $14 Bg6 8. Bg2) 7... Be7 {[%emt 0:00:37]} (7... Bg6 $11) 8. f4 {[%emt 0:00:32]} ({White should try} 8. f3 $14) 8... Nbd7 {[%emt 0:00:37]} (8... Bg6 $1 $11 {keeps the balance.}) 9. g4 $16 {[%emt 0:00:10]} Bxg4 {[%emt 0:00:45]} (9... Bg6 $16 {was necessary.}) 10. hxg4 $18 {[%emt 0:00:04]} Nxg4 {[%emt 0:00:01]} 11. Qd3 {[%emt 0:00:41]} Bh4+ {[%emt 0:00:07] [#]} 12. Kd2 {[%emt 0:00:01]} (12. Kd1 $1 $18) 12... Bf2 $14 {[%emt 0:01:23]} 13. Nd1 {[%emt 0:00:02]} Bxe3+ {[%emt 0:00:19][%mdl 64] Remove Defender, Deflection} 14. Nxe3 {[%emt 0:00:02]} (14. Ke1 $1 $14) 14... Nf2 $1 $17 {[%emt 0:00:01][%csl LRd3,LRh1]} 15. Qb3 {[%emt 0:00:36]} Qa5+ {[%emt 0:00:50]} 16. c3 {[%emt 0:00:08]} Nxh1 {[%emt 0:00:14]} 17. Bg2 {[%emt 0:00:16]} Nf2 {[%emt 0:00:09] Strongly threatening ...Nf6.} 18. Rf1 {[%emt 0:00:01] [#]} Nxe4+ $1 {[%emt 0:00:19]} 19. Bxe4 {[%emt 0:00:02]} c5 $2 {[%emt 0:00:52]} (19... Qc7 $17 {stays on course.}) 20. Nc4 $36 {[%emt 0:01:34][%cal Be3c4,Bc4d6,Bd6b7][%mdl 2080] White is really pushing.} ({And not} 20. Qxb7 Rb8 21. Qc6 Rxb2+ 22. Bc2 Qb6 $15) 20... Qc7 {[%emt 0:00:22] Hoping for ...d5.} 21. Qxb7 {[%emt 0:00:02][%mdl 64] Overworked Piece. 0x0.00144bc8a5e0dp-1022s more active pieces. The black rooks are badly placed.} Qxb7 {[%emt 0:00:19]} 22. Nxd6+ {[%emt 0:00:01][%mdl 64] Pin, Double Attack} ({But not} 22. Bxb7 $6 Rb8 $11) 22... Ke7 {[%emt 0:00:18]} 23. Nxb7 {[%emt 0:00:03] Pair of Knights!} cxd4 {[%emt 0:00:10] This move loses the game for Black.} (23... Rac8 $16 {is a better defense.} 24. f5 exf5 25. Bxf5 (25. Rxf5 g6 $16) 25... Rc7) 24. Nxd4 $18 {[%emt 0:00:01]} f5 {[%emt 0:00:08]} 25. Bf3 {[%emt 0:00:14]} Rac8 $2 {[%emt 0:01:52]} (25... Kf6 {might work better.} 26. b4 Rac8) 26. Re1 {[%emt 0:00:09][%csl LRe6,LRf5] White is clearly winning.} Nf8 {[%emt 0:00:44]} 27. Nxf5+ {[%emt 0:00:07]} Kf6 {[%emt 0:00:05]} 28. Nfd6 {[%emt 0:00:59]} Rc7 {[%emt 0:00:30]} (28... Ra8 $142 29. c4 Ng6) 29. Ne8+ {Weighted Error Value: White=0.37/Black=0.58} 1-0

[Event "Czech Open-Rapid 2022"]
[Site "Pardubice"]
[Date "2022.07.20"]
[Round "3.42"]
[White "Kokes, Bohuslav"]
[Black "Alieksieienko, Mykhail"]
[Result "1-0"]
[ECO "B34"]
[WhiteElo "1909"]
[BlackElo "1610"]
[Annotator "TA"]
[PlyCount "91"]
[EventDate "2022.07.20"]
[EventType "swiss"]
[EventCountry "CZE"]
[SourceTitle "playchess.com"]
[Source "ChessBase"]
[SourceQuality "1"]
[TimeControl "1200+10"]

{[%evp 17,91,-5,-4,-8,37,0,33,-8,96,87,121,116,137,129,129,141,135,141,133,99,116,114,106,84,76,76,86,20,47,27,17,15,237,-92,-77,-178,-69,-89,-87,-79,-57,-60,1993,1964,2318,2318,2318,2311,1816,2007,2310,2349,2284,2164,2008,1921,1989,1983,4902,2010,5408,1658,12850,6341,29984,29985,29985,29986,29986,29987,29988,29988,29988,29989,29990,29991]} 1. e4 {[%emt 0:00:23]} c5 {[%emt 0:00:00]} 2. Nf3 {[%emt 0:00:07][%cal Bg1f3,Bf3d4,Bd4b5,Bb5a3,Ba3c4,Bc4b6][%mdl 32]} Nc6 {[%emt 0:00:02]} 3. d4 {[%emt 0:00:08]} cxd4 {[%emt 0:00:01]} 4. Nxd4 {[%emt 0:00:09]} Nf6 {[%emt 0:00:02]} 5. Nc3 {[%emt 0:00:06]} e5 {[%emt 0:00:01]} 6. Ndb5 {[%emt 0:00:08]} d6 {[%emt 0:00:01]} 7. a4 {[%emt 0:00:13]} a6 {[%emt 0:00:21]} 8. Na3 {[%emt 0:00:05]} Bg4 {[%emt 0:00:03]} 9. f3 {[%emt 0:00:20] 9.Be2 gains popularity.} Be6 {[%emt 0:00:02]} 10. Bc4 {[%emt 0:00:08] Against d5. B33: Sicilian: Pelikan and Sveshnikov Variations.} Be7 {[%emt 0:00:19]} 11. O-O {[%emt 0:01:57]} O-O {[%emt 0:00:15]} 12. Kh1 {[%emt 0:00:05] [#] White is slightly better.} Bxc4 $146 {[%emt 0:00:32]} (12... Nb4 $11 {keeps the balance.}) ({Predecessor:} 12... Rc8 13. b3 Nb4 14. Bb2 Rc7 15. Qe2 h5 16. Rad1 h4 17. Bxe6 fxe6 18. Nc4 Nc6 {½-½ (44) Romieux,S (2196)-Tirard,H (2421) Cap d'Agde 2003}) 13. Nxc4 $16 {[%emt 0:00:06]} Rc8 {[%emt 0:00:06] [#]} 14. a5 $1 {[%emt 0:01:52]} Nd4 {[%emt 0:00:44]} 15. Nb6 {[%emt 0:00:37]} Rc6 {[%emt 0:00:46]} 16. Be3 {[%emt 0:00:07]} Ne6 {[%emt 0:00:27]} 17. Ncd5 {[%emt 0:00:17] White is more active.} Nc5 {[%emt 0:01:37]} 18. Nxe7+ {[%emt 0:02:57]} Qxe7 {[%emt 0:00:05]} 19. Bg5 {[%emt 0:00:04]} Ncd7 {[%emt 0:01:06]} 20. Nxd7 {[%emt 0:01:13]} Qxd7 {[%emt 0:00:03]} 21. Bxf6 {[%emt 0:00:08]} gxf6 {[%emt 0:00:01]} 22. f4 {[%emt 0:00:02]} (22. Qd3 $16) 22... Rc4 {[%emt 0:00:31]} 23. Qh5 {[%emt 0:01:06] Black must now prevent Ra3.} Rxe4 {[%emt 0:00:49]} 24. Ra3 $36 {[%emt 0:00:02][%mdl 2048] Intending Rg3+ and mate. White has good play.} Qb5 $2 {[%emt 0:00:53] [#]} (24... Rxf4 25. Rg3+ Rg4 26. Rxg4+) (24... exf4 $11 {and Black has nothing to worry.} 25. Rh3 Rfe8) 25. Rg1 $2 {[%emt 0:00:32]} (25. Rg3+ $1 $18 Kh8 26. Rg1) 25... exf4 $17 {[%emt 0:00:14]} 26. Qf3 {[%emt 0:01:50]} (26. Qxb5 $17 {keeps fighting.} axb5 27. Rd3) 26... Re3 {[%emt 0:01:00]} ({Inferior is} 26... Qxb2 27. Qg4+ Kh8 28. Rh3 $17) (26... Rfe8 $19 27. Qc3 R8e5) 27. Qxf4 {[%emt 0:00:47]} Rxa3 {[%emt 0:00:04]} 28. bxa3 $15 {[%emt 0:00:01][%mdl 4096] Endgame KQR-KQR} Qe5 {[%emt 0:00:03]} ({Of course not} 28... Qxa5 $6 29. Qxf6 Qe5 30. Qf3 $11) 29. Qb4 {[%emt 0:00:11]} Rc8 $2 {[%emt 0:00:59][%mdl 8192] White stays focused until the end.} (29... Re8 $15) 30. Qg4+ $18 {[%emt 0:00:04]} Qg5 {[%emt 0:00:17]} 31. Qxc8+ {[%emt 0:00:02]} Kg7 {[%emt 0:00:00]} 32. Qxb7 {[%emt 0:00:03]} Qxa5 {[%emt 0:00:02]} 33. Qb4 {[%emt 0:00:06]} Qc7 {[%emt 0:00:17]} 34. Qg4+ {[%emt 0:00:13]} Kf8 {[%emt 0:00:03]} 35. Qe4 {[%emt 0:00:15]} Kg7 {[%emt 0:00:05]} 36. Rf1 {[%emt 0:00:05]} Qc5 {[%emt 0:00:07]} 37. a4 {[%emt 0:00:08]} d5 {[%emt 0:00:08]} 38. Qf5 {[%emt 0:00:05]} Qd6 {[%emt 0:00:02]} 39. h3 {[%emt 0:00:05]} d4 {[%emt 0:00:16]} 40. Rd1 {[%emt 0:00:04] White wants to mate with Qg4+.} h6 {[%emt 0:00:08]} 41. Qg4+ {[%emt 0:00:02] White mates.} Kh7 {[%emt 0:00:03]} 42. Qxd4 {[%emt 0:00:02]} Qe6 {[%emt 0:00:04]} 43. c4 {[%emt 0:00:07][%cal Bc2c4,Bc4c5,Bc5c6][%mdl 32]} Kg7 {[%emt 0:00:06]} 44. c5 {[%emt 0:00:01]} Qc6 {[%emt 0:00:05]} 45. Qd6 {[%emt 0:00:09]} Qxa4 {[%emt 0:00:02]} 46. c6 {[%emt 0:00:01] Weighted Error Value: White=0.45/Black=0.47} 1-0